Cogmind - Beta 12 @@@ ROGUE MODE // 2024.02.12 @ 17:51:38 Player: TheGreatBorealis Result: Destroyed by H-77 Assassin with High-powered Shotgun Performance ------------- Evolutions (5) 2500 Regions Visited (16) 3200 Robots Destroyed (185) 925 Value Destroyed (6635) 6635 Prototype IDs (24) 480 Alien Tech Used (2) 400 Bonus (1358) 1358 TOTAL SCORE: 15498 Bonus ------- High Alert Combat Kills 214 Follower Combat Kills 356 Entered DSFs 500 Aligned with FarCom 300 Friendly Fire -12 Cogmind --------- Core Integrity 0/1000 Matter 279/300 Energy 99/100 System Corruption 13% Temperature Cool (9) Movement Core (50) Location -4/Proximity Caves Parts ------- > --- POWER (1) -------- (None) > --- PROPULSION (5) --- (None) > --- UTILITY (7) ------ (None) > --- WEAPON (4) ------- (None) > --- INVENTORY (5) ---- Neutrino Core Advanced Heat Sink Enhanced Optical Array Peak State ------------ > --- POWER ------------ Neutrino Core > --- PROPULSION ------- Armored Medium Treads Flexi-carbon Leg Flexi-carbon Leg Flexi-carbon Leg Flexi-carbon Leg > --- UTILITY ---------- Advanced Heat Sink Structural Scanner Improved Target Analyzer Improved Transmission Jammer Experimental Utility Shielding Experimental Utility Shielding Improved Hacking Suite > --- WEAPON ----------- Gauss Rifle Gauss Rifle KE Penetrator Tesla Bomb Launcher > --- INVENTORY -------- Neutrino Core Neutrino Core Carbon-fiber Leg Advanced Heat Sink Spear [Rating: 89] Favorites ----------- Power Neutrino Core Engine Heavy Ion Engine Power Core Neutrino Core Reactor Heavy Antimatter Reactor Propulsion Aluminum Leg Treads Light Treads Leg Aluminum Leg Utility Medium Storage Unit Device Structural Scanner Storage Medium Storage Unit Processor Targeting Computer Hackware Improved Hacking Suite Protection Experimental Utility Shielding Weapon Improved Heavy Machine Gun Energy Gun Medium Laser Ballistic Gun Improved Heavy Machine Gun Launcher Tesla Bomb Launcher Special Weapon Welding Torch Impact Weapon Flail Slashing Weapon Great Axe Piercing Weapon Spear Build | -11 -10 -10 -9 -9 -9 -8 -8 -8 -7 -7 -6 -5 -5 -5 -5 -4 ------- Run | Jun Mat Min Mat Min Exi Min Mat Sto Fac DSF Fac Fac Upp Upp Zhi Pro Slots Evolved 10 | . . . 2 . . . 2 . 2 . 2 2 . . . . Power . | . . . . . . . . . . . . . . . . . Propulsion 3 | . . . 1 . . . 1 . . . 1 . . . . . Utility 5 | . . . . . . . 1 . 1 . 1 2 . . . . Weapon 2 | . . . 1 . . . . . 1 . . . . . . . Parts Attached 210 | . 16 14 36 4 . . 14 19 3 8 6 63 10 6 7 4 Power 22 | . 3 4 4 . . . 1 1 . 1 . 5 2 . 1 . Engine 12 | . 2 4 3 . . . 1 1 . . . . 1 . . . Core 9 | . 1 . 1 . . . . . . 1 . 5 1 . . . Reactor 1 | . . . . . . . . . . . . . . . 1 . Propulsion 54 | . 4 3 15 . . . 5 4 . . 1 15 7 . . . Treads 11 | . 2 . . . . . . . . . . 2 7 . . . Leg 43 | . 2 3 15 . . . 5 4 . . 1 13 . . . . Wheel . | . . . . . . . . . . . . . . . . . Hover . | . . . . . . . . . . . . . . . . . Flight . | . . . . . . . . . . . . . . . . . Utility 49 | . 3 4 4 . . . 4 1 1 3 1 18 1 2 5 2 Device 14 | . . 1 . . . . . . 1 2 . 8 1 . . 1 Storage 3 | . 1 . . . . . 1 . . . . . . . 1 . Processor 4 | . . . . . . . 1 . . . . 3 . . . . Hackware 1 | . . . . . . . . . . . . 1 . . . . Protection 27 | . 2 3 4 . . . 2 1 . 1 1 6 . 2 4 1 Artifact . | . . . . . . . . . . . . . . . . . Weapon 85 | . 6 3 13 4 . . 4 13 2 4 4 25 . 4 1 2 Energy Gun . | . . . . . . . . . . . . . . . . . Energy Cannon . | . . . . . . . . . . . . . . . . . Ballistic Gun 59 | . 5 3 10 2 . . 3 9 2 2 4 19 . . . . Ballistic Cannon . | . . . . . . . . . . . . . . . . . Launcher 12 | . . . 2 2 . . 1 1 . 2 . 2 . 1 . 1 Special Weapon 1 | . . . . . . . . . . . . 1 . . . . Impact Weapon 7 | . 1 . 1 . . . . 3 . . . 2 . . . . Slashing Weapon 4 | . . . . . . . . . . . . 1 . 1 1 1 Piercing Weapon 2 | . . . . . . . . . . . . . . 2 . . Special Melee Weapon . | . . . . . . . . . . . . . . . . . Unidentified Prototypes 14 | . . 1 1 . . . 1 2 . . . 4 . . 5 . Parts Lost 24 | . . 1 1 . . . 1 1 . 2 . 7 . . . 11 Power 2 | . . . . . . . . . . . . 2 . . . . Propulsion 9 | . . 1 . . . . . . . . . 3 . . . 5 Utility 6 | . . . 1 . . . 1 . . 1 . 1 . . . 2 Weapon 7 | . . . . . . . . 1 . 1 . 1 . . . 4 Highest Loss Streak 7 | . . 1 1 . . . 1 1 . 2 . 4 . . . 7 To Critical Strikes 1 | . . . . . . . . 1 . . . . . . . . Average Slot Usage (%) 95 | . 96 99 99 100 100 100 98 99 94 99 100 91 93 95 98 92 Engine 4 | . 5 14 9 11 11 11 9 9 7 6 . . . . . . Core 3 | . 8 . 1 . . . . . . . 6 4 4 5 1 . Treads 6 | . 19 . . . . . . . . . . 2 17 29 29 24 Leg 22 | . 8 27 33 33 33 33 35 36 30 30 33 25 11 . . . Device 6 | . . . . . . . . . 1 8 13 13 10 11 11 10 Storage 6 | . 14 14 11 11 11 11 9 9 7 7 6 2 . . . . Processor 3 | . . . . . . . 8 9 7 7 6 5 5 5 5 5 Hackware 1 | . . . . . . . . . . . . 2 5 5 5 5 Protection 10 | . 10 14 10 11 11 11 8 9 7 4 6 9 11 12 15 17 Ballistic Gun 23 | . 25 28 32 32 33 33 26 23 30 29 26 19 17 17 17 16 Naked Turns 34 | . . . . . . . . . . . . 32 . . . 2 Heaviest Build 59 | 12 18 20 29 29 29 29 30 30 34 37 44 59 57 57 52 52 Greatest Support 117 | 20 40 20 33 30 30 30 40 45 45 45 55 90 117 117 117 117 Greatest Overweight (x) 4 | . . . . . . . . . . . . 4 2 . . . Average Overweight (x) . | . . . . . . . . . . . . . . . . . Largest Inventory Capacity 10 | . 10 10 10 10 10 10 10 10 10 10 10 10 5 5 5 5 Average Capacity 8 | . 8 10 10 10 10 10 10 10 10 10 10 7 5 5 5 5 Most Carried 10 | . 10 10 10 10 10 10 10 10 10 10 10 10 5 5 5 5 Average Carried 7 | . 8 9 9 10 9 10 9 9 9 9 9 7 5 5 4 4 Final Capacity 10 | 8 10 10 10 10 10 10 10 10 10 10 10 5 5 5 5 5 Final Carried 10 | 6 10 10 10 10 10 10 9 10 10 10 10 5 5 5 5 3 Class Distribution -------------------- 39% | Scavenger-Tank 17% | Scavenger-Gunner 16% | Scavenger-Skirmisher 12% | Scavenger-Mutant 8% | Mutant Dominant Class ---------------- Mutant | -10/Materials Scavenger-Mutant | -10/Mines Scavenger-Tank | -9/Materials Scavenger-Tank | -9/Mines Scavenger-Tank | -9/Exiles Scavenger-Skirmisher | -8/Mines Scavenger-Skirmisher | -8/Materials Commander-Skirmisher | -8/Storage Commander-Skirmisher | -7/Factory Scavenger-Gunner | -7/DSF Scavenger-Skirmisher | -6/Factory Scavenger-Gunner | -5/Factory Scavenger-Tank | -5/Upper Caves Scavenger-Tank | -5/Upper Caves Scavenger-Tank | -5/Zhirov Scavenger-Tank | -4/Proximity Caves Resources | -11 -10 -10 -9 -9 -9 -8 -8 -8 -7 -7 -6 -5 -5 -5 -5 -4 ----------- Run | Jun Mat Min Mat Min Exi Min Mat Sto Fac DSF Fac Fac Upp Upp Zhi Pro Matter Collected 6245 | 200 498 214 1025 61 . . 328 384 . 520 121 1865 442 192 . 395 Remotely . | . . . . . . . . . . . . . . . . . Salvage Created 7705 | . 662 388 1370 37 . . 251 247 . 419 121 2961 519 271 . 459 Parts 420 | . 43 26 87 3 . . 20 17 . 12 5 167 20 7 . 13 Haulers Intercepted 8 | . 2 . 2 . . . 1 . . . 1 2 . . . . Recyclers Shooed 7 | . 1 . 2 . . . . . . . 1 3 . . . . Parts Field Recycled . | . . . . . . . . . . . . . . . . . Retrieved Matter . | . . . . . . . . . . . . . . . . . Parts Self-Destructed 19 | . . . . . . . . . . . . . 10 1 . 8 Prevented 12 | . . . . . . . . . . . . . 2 5 . 5 Kills | -11 -10 -10 -9 -9 -9 -8 -8 -8 -7 -7 -6 -5 -5 -5 -5 -4 ------- Run | Jun Mat Min Mat Min Exi Min Mat Sto Fac DSF Fac Fac Upp Upp Zhi Pro Combat Hostiles Destroyed 156 | . 17 12 30 9 . . 7 7 . 10 . 42 10 4 . 8 Guns 141 | . 17 12 30 5 . . 4 7 . 8 . 39 10 1 . 8 AOE 13 | . . . . 4 . . 3 . . 2 . 3 . 1 . . Classes Destroyed 18 | . 4 1 4 1 . . 1 . . 2 . 4 1 . . . Worker 8 | . . . . . . . 1 . . . . 7 . . . . Builder 5 | . . . . . . . . . . . . 5 . . . . Tunneler 2 | . . . 1 . . . . . . . 1 . . . . . Hauler 8 | . 2 . 2 . . . 1 . . . 1 2 . . . . Recycler 4 | . . . 2 . . . . . . . . 2 . . . . Operator 2 | . . . . . . . . . . . . 2 . . . . Watcher 5 | . 1 . . . . . 1 . . . . 3 . . . . Swarmer 42 | . 6 6 8 4 . . 4 3 . . . 9 . . . 2 Grunt 56 | . 11 4 13 . . . 2 1 . 7 . 10 1 3 . 4 Brawler 3 | . . . 1 . . . . . . . . . . 1 . 1 Duelist 2 | . . . 1 . . . . . . . . 1 . . . . Sentry 16 | . . 2 7 . . . 1 3 . . . 2 . . . 1 Specialist 2 | . . . . . . . . . . 2 . . . . . . Hunter 8 | . . . . . . . . . . . . 6 2 . . . Programmer 14 | . . . . . . . . . . . . 14 . . . . Heavy 1 | . . . . . . . . . . 1 . . . . . . Assembled 5 | . . . . 5 . . . . . . . . . . . . Savage 5 | . . . . . . . . . . . . . 5 . . . Butcher 1 | . . . . . . . . . . . . . 1 . . . Mutant 1 | . . . . . . . . . . . . . 1 . . . Best Kill Streak 8 | . 4 3 5 5 . . 6 6 . 4 2 8 5 4 . 5 Combat Bots Only 6 | . 3 3 4 5 . . 5 6 . 4 . 5 5 4 . 5 Max Kills in Single Turn 4 | . 1 2 1 2 . . 3 1 . 1 1 4 2 1 . 2 Gunslinging 1 | . . . . . . . . . . . . . 1 . . 1 Exploded 3 | . . . . 2 . . 2 . . 1 . 3 . 1 . . Melee . | . . . . . . . . . . . . . . . . . Uniques/NPCs Destroyed . | . . . . . . . . . . . . . . . . . Combat | -11 -10 -10 -9 -9 -9 -8 -8 -8 -7 -7 -6 -5 -5 -5 -5 -4 -------- Run | Jun Mat Min Mat Min Exi Min Mat Sto Fac DSF Fac Fac Upp Upp Zhi Pro Damage Taken 10986 | . 512 567 906 224 . . 422 235 . 804 . 4502 628 73 . 2113 Core 1505 | . 86 118 152 17 . . 47 15 . 72 . 830 29 . . 139 Absorbed by Shields . | . . . . . . . . . . . . . . . . . Redirected to Shielding 879 | . 35 10 107 50 . . 18 . . 191 . 281 . . . 187 Core Remaining (%) 75 | 100 . 18 . . . 57 . 88 . 89 100 . . . . . Volleys Fired 363 | . 56 34 73 9 . . 15 12 . 24 4 87 24 3 . 22 Largest 4 | . 2 2 3 3 . . 3 3 . 4 4 4 3 4 . 4 Hottest 123 | . 70 40 73 79 . . 79 71 . 110 106 123 45 91 . 91 Shots Fired 1142 | . 103 68 219 26 . 1 45 35 . 96 16 382 72 11 . 68 Gun 1115 | . 103 68 215 23 . 1 43 35 . 86 16 382 72 8 . 63 Cannon . | . . . . . . . . . . . . . . . . . Launcher 27 | . . . 4 3 . . 2 . . 10 . . . 3 . 5 Special . | . . . . . . . . . . . . . . . . . Kinetic 1106 | . 94 68 215 23 . 1 43 35 . 86 16 382 72 8 . 63 Thermal 9 | . 9 . . . . . . . . . . . . . . . Explosive 19 | . . . 4 3 . . 2 . . 10 . . . . . . Electromagnetic 8 | . . . . . . . . . . . . . . 3 . 5 Robot Hit Streak 27 | . 22 12 12 4 . 3 11 27 . 9 5 23 8 5 . 10 Robot Miss Streak 6 | . 3 3 6 2 . . 2 3 . 3 1 3 2 2 . 2 Penetration Max 2 | . . . . . . . . . . . 1 2 . . . . Secondary Targets 13 | . 1 . 1 2 . . . 1 . 3 . 2 1 . . 2 Max Gunslinging Chain 1 | . 1 . 1 1 . . . 1 . 1 . 1 1 . . 1 Autonomous 92 | . . . . . . . . . . . . 92 . . . . Shots Hit Robots 750 | . 77 46 136 10 . 1 23 30 . 62 10 252 47 4 . 52 Core Hits 350 | . 30 22 66 13 . 1 16 12 . 30 5 106 19 7 . 23 Critical Kills 16 | . . 1 1 . . . 1 . . . . 9 4 . . . Critical Parts Destroyed 18 | . 1 . . . . . . . . 1 . 14 . . . 2 Critical Strikes 36 | . 1 2 1 . . . 1 . . 1 . 23 4 . . 3 Destroy 36 | . 1 2 1 . . . 1 . . 1 . 23 4 . . 3 Melee Attacks 15 | . 1 . 1 . . . . 4 . . . 8 . 1 . . Impact 9 | . 1 . 1 . . . . 4 . . . 3 . . . . Slashing 5 | . . . . . . . . . . . . 5 . . . . Piercing 1 | . . . . . . . . . . . . . . 1 . . Sneak Attacks . | . . . . . . . . . . . . . . . . . Combat Hostiles . | . . . . . . . . . . . . . . . . . Follow-up Attacks . | . . . . . . . . . . . . . . . . . Damage Inflicted 18080 | . 1109 400 1989 567 . 12 757 469 . 2059 217 7709 1070 442 . 1280 Guns 15099 | . 1109 400 1773 175 . 12 406 469 . 949 217 7309 1070 111 . 1099 Cannons . | . . . . . . . . . . . . . . . . . Explosions 2928 | . . . 213 392 . . 351 . . 1110 . 350 . 331 . 181 Melee 49 | . . . . . . . . . . . . 49 . . . . Ramming 4 | . . . 3 . . . . . . . . 1 . . . . Kinetic 15022 | . 1032 400 1773 175 . 12 406 469 . 949 217 7309 1070 111 . 1099 Thermal 632 | . 77 . . 176 . . . . . . . 350 . 29 . . Explosive 1890 | . . . 213 216 . . 351 . . 1110 . . . . . . Electromagnetic 483 | . . . . . . . . . . . . . . 302 . 181 Impact . | . . . . . . . . . . . . . . . . . Slashing 49 | . . . . . . . . . . . . 49 . . . . Piercing . | . . . . . . . . . . . . . . . . . Highest Corruption 13 | . . . 4 4 4 4 . . . . . 11 13 13 13 13 Average Corruption 8 | . . . 2 4 4 4 . . . . . 8 12 13 13 13 Corruption Purged . | . . . . . . . . . . . . . . . . . Corruption Blocked . | . . . . . . . . . . . . . . . . . Effects 200 | . . . 14 3 6 8 . . . . . 85 26 29 16 13 Message Errors 46 | . . . 3 2 2 . . . . . . 16 8 6 4 5 Matter Fused 51 | . . . 3 . 3 3 . . . . . 20 7 9 2 4 Heat Flow Errors 24 | . . . . . 1 2 . . . . . 12 3 3 2 1 Energy Discharges 17 | . . . 2 . . 1 . . . . . 9 1 3 1 . Parts Rejected 3 | . . . 1 . . . . . . . . 2 . . . . Parts Fused 1 | . . . . . . . . . . . . . . . 1 . Data Loss (minor) 26 | . . . 2 . . 1 . . . . . 12 4 3 3 1 Data Loss (major) 15 | . . . 1 . . . . . . . . 8 2 2 2 . Misfires 7 | . . . 2 . . 1 . . . . . 3 . 1 . . Alerts 4 | . . . . . . . . . . . . 1 1 . 1 1 Weapon Failures 6 | . . . . 1 . . . . . . . 2 . 2 . 1 Overload Shots . | . . . . . . . . . . . . . . . . . Overflow Damage 126 | . . . . 34 . . . . . 8 . 84 . . . . Projectiles . | . . . . . . . . . . . . . . . . . Explosions 126 | . . . . 34 . . . . . 8 . 84 . . . . Melee . | . . . . . . . . . . . . . . . . . Knockbacks . | . . . . . . . . . . . . . . . . . Impact . | . . . . . . . . . . . . . . . . . Kinetic . | . . . . . . . . . . . . . . . . . Secondary . | . . . . . . . . . . . . . . . . . Self-Inflicted Damage 162 | . . . . 71 . . . . . . . 75 . . . 16 Shots 5 | . . . . 3 . . . . . . . 1 . . . 1 Rammed . | . . . . . . . . . . . . . . . . . Targets Rammed 2 | . . . 1 . . . . . . . . 1 . . . . Kicked 2 | . . . 1 . . . . . . . . 1 . . . . Crushed . | . . . . . . . . . . . . . . . . . Highest Temperature 342 | . 93 28 110 48 174 255 12 134 . 60 . 342 280 254 263 193 Average Temperature 63 | . 22 10 32 23 95 124 5 57 . 16 . 95 131 113 121 90 Received Heat Transfer 2015 | . 240 156 336 80 . . 117 72 . 243 . 471 9 36 . 255 Effects 3 | . . . . . . . . . . . . 3 . . . . Energy Bleed 1 | . . . . . . . . . . . . 1 . . . . Interference 2 | . . . . . . . . . . . . 2 . . . . Siege Activations . | . . . . . . . . . . . . . . . . . Robots Corrupted 2 | . . . . . . . . . . . . . . 2 . . Combat Hostiles 2 | . . . . . . . . . . . . . . 2 . . Parts Fried 2 | . . . . . . . . . . . . . . 2 . . Impact Corruptions . | . . . . . . . . . . . . . . . . . Robots Melted . | . . . . . . . . . . . . . . . . . Combat Hostiles . | . . . . . . . . . . . . . . . . . Parts Melted . | . . . . . . . . . . . . . . . . . Heat Transferred 772 | . 222 . . 300 . . . . . . . 200 . 50 . . Parts Sabotaged . | . . . . . . . . . . . . . . . . . Parts Stolen . | . . . . . . . . . . . . . . . . . Parts Stripped . | . . . . . . . . . . . . . . . . . Power Chain Reactions 1 | . . . . . . . . . . . . . . 1 . . Missiles Intercepted . | . . . . . . . . . . . . . . . . . Alert | -11 -10 -10 -9 -9 -9 -8 -8 -8 -7 -7 -6 -5 -5 -5 -5 -4 ------- Run | Jun Mat Min Mat Min Exi Min Mat Sto Fac DSF Fac Fac Upp Upp Zhi Pro Peak Influence 716 | . 255 230 355 336 . . 212 532 196 401 222 716 . . . . Initial 210 | . . . 11 138 . . . 89 196 137 210 108 . . . . Average 231 | . 99 82 189 319 . . 77 295 196 259 216 346 . . . . Maximum Alert Level 3 | . 1 1 1 1 . . 1 2 . 2 1 3 . . . . Low Security (%) 45 | . 80 84 45 1 . 100 74 21 100 35 . 24 . . . . Level 1 37 | . 19 15 54 98 . . 25 55 . 34 100 39 . . . . Level 2 14 | . . . . . . . . 22 . 29 . 31 . . . . Level 3 1 | . . . . . . . . . . . . 4 . . . . Level 4 . | . . . . . . . . . . . . . . . . . Level 5 . | . . . . . . . . . . . . . . . . . High Security . | . . . . . . . . . . . . . . . . . Max Security . | . . . . . . . . . . . . . . . . . Sterilizations 1 | . . . . . . . . . . 1 . . . . . . Squads Dispatched 26 | . 4 . 2 . . . 2 . 1 3 . 13 . . . 1 Investigation 5 | . 3 . 2 . . . . . . . . . . . . . Extermination 6 | . . . . . . . . . . . . 6 . . . . Reinforcement 14 | . 1 . . . . . 2 . 1 3 . 7 . . . . Assault 1 | . . . . . . . . . . . . . . . . 1 Garrison . | . . . . . . . . . . . . . . . . . Intercept . | . . . . . . . . . . . . . . . . . Searches Triggered . | . . . . . . . . . . . . . . . . . Construction Impeded 4 | . . . . . . . . . . . . 4 . . . . Haulers Reinforced 1 | . . . . . . . . . . . . 1 . . . . Active Scanning Responses . | . . . . . . . . . . . . . . . . . Cargo Convoy Interrupts . | . . . . . . . . . . . . . . . . . Stealth | -11 -10 -10 -9 -9 -9 -8 -8 -8 -7 -7 -6 -5 -5 -5 -5 -4 --------- Run | Jun Mat Min Mat Min Exi Min Mat Sto Fac DSF Fac Fac Upp Upp Zhi Pro Distress Signals 11 | . 2 . 1 . . . 3 3 . . . 2 . . . . Communications Jammed 1 | . . . . . . . . . . . . 1 . . . . Distress Signals 1 | . . . . . . . . . . . . 1 . . . . Times Spotted 219 | . 25 14 42 9 . . 14 14 . 14 . 58 10 4 . 15 Peak Tracking Total 7 | . 6 3 5 5 . . 7 6 . 5 . 7 4 4 . 6 Tactical Retreats 13 | . 2 2 1 . . . . 1 . 2 . 3 . . . 2 Traps | -11 -10 -10 -9 -9 -9 -8 -8 -8 -7 -7 -6 -5 -5 -5 -5 -4 ------- Run | Jun Mat Min Mat Min Exi Min Mat Sto Fac DSF Fac Fac Upp Upp Zhi Pro Traps Triggered 12 | . 3 . 6 . . . . . . 1 . 2 . . . . Indirectly . | . . . . . . . . . . . . . . . . . Trap Hack Attempts . | . . . . . . . . . . . . . . . . . Triggered . | . . . . . . . . . . . . . . . . . Disarmed . | . . . . . . . . . . . . . . . . . Reprogrammed . | . . . . . . . . . . . . . . . . . Reused . | . . . . . . . . . . . . . . . . . Traps Extracted . | . . . . . . . . . . . . . . . . . Installed . | . . . . . . . . . . . . . . . . . Triggered 2 | . . . . . . . . . . . . . 1 . . 1 Machines | -11 -10 -10 -9 -9 -9 -8 -8 -8 -7 -7 -6 -5 -5 -5 -5 -4 ---------- Run | Jun Mat Min Mat Min Exi Min Mat Sto Fac DSF Fac Fac Upp Upp Zhi Pro Machines Disabled 20 | . 1 . . 5 . . . 3 . 1 . 10 . . . . Max in Single Turn 5 | . 1 . . 5 . . . 1 . . . 2 . . . . Garrison Access 1 | . . . . . . . . 1 . . . . . . . . Machines Repaired . | . . . . . . . . . . . . . . . . . Machines Sabotaged . | . . . . . . . . . . . . . . . . . Overloaded Fab Kills . | . . . . . . . . . . . . . . . . . Hacking | -11 -10 -10 -9 -9 -9 -8 -8 -8 -7 -7 -6 -5 -5 -5 -5 -4 --------- Run | Jun Mat Min Mat Min Exi Min Mat Sto Fac DSF Fac Fac Upp Upp Zhi Pro Machines Accessed 40 | . 5 1 7 . 1 . . 7 1 . 1 7 . 2 8 . Terminals 23 | . 5 . 5 . . . . 6 1 . 1 5 . . . . Fabricators . | . . . . . . . . . . . . . . . . . Repair Stations . | . . . . . . . . . . . . . . . . . Recycling Units 2 | . . . 1 . . . . . . . . 1 . . . . Scanalyzers 1 | . . . 1 . . . . . . . . . . . . . Garrison Access 2 | . . . . . . . . 1 . . . 1 . . . . Total Hacks 114 | . 8 1 14 . 9 . . 15 1 . 2 15 . 2 47 . Successful 88 | . 4 1 6 . 9 . . 8 1 . 1 9 . 2 47 . Failed 26 | . 4 . 8 . . . . 7 . . 1 6 . . . . Catastrophic 8 | . 1 . 5 . . . . 1 . . 1 . . . . . Database Lockouts . | . . . . . . . . . . . . . . . . . Manual 25 | . 3 . 9 . 1 . . 5 . . 1 6 . . . . Terminals 41 | . 8 . 9 . . . . 12 1 . 2 9 . . . . Fabricators . | . . . . . . . . . . . . . . . . . Repair Stations . | . . . . . . . . . . . . . . . . . Recycling Units 6 | . . . 3 . . . . . . . . 3 . . . . Scanalyzers 2 | . . . 2 . . . . . . . . . . . . . Garrison Access 6 | . . . . . . . . 3 . . . 3 . . . . Terminal Hacks 79 | . 4 1 1 . 9 . . 6 1 . 1 7 . 2 47 . Record 44 | . . . . . 9 . . . . . . . . . 35 . Part Schematic 5 | . . . . . . . . 1 . . . . . . 4 . Robot Analysis 4 | . . . . . . . . . . . . . . . 4 . Prototype ID Bank 5 | . . . . . . . . 1 . . . . . . 4 . Open Door 4 | . . 1 . . . . . 1 . . . . . 2 . . Open DSF 1 | . . . . . . . . . 1 . . . . . . . Terminal Index 2 | . . . . . . . . 1 . . . 1 . . . . Alert Level 4 | . 1 . . . . . . . . . 1 2 . . . . Unreport Threat 8 | . 2 . 1 . . . . 1 . . . 4 . . . . Locate Traps 2 | . 1 . . . . . . 1 . . . . . . . . Fabricator Hacks . | . . . . . . . . . . . . . . . . . Repair Station Hacks . | . . . . . . . . . . . . . . . . . Recycling Unit Hacks 5 | . . . 3 . . . . . . . . 2 . . . . Process 2 | . . . 1 . . . . . . . . 1 . . . . Retrieve Matter 3 | . . . 2 . . . . . . . . 1 . . . . Scanalyzer 2 | . . . 2 . . . . . . . . . . . . . Insert Component 1 | . . . 1 . . . . . . . . . . . . . Analyze 1 | . . . 1 . . . . . . . . . . . . . Garrison Access Hacks 1 | . . . . . . . . 1 . . . . . . . . Seal Access 1 | . . . . . . . . 1 . . . . . . . . Unauthorized Hacks 1 | . . . . . . . . 1 . . . . . . . . Terminals 1 | . . . . . . . . 1 . . . . . . . . Assimilate 1 | . . . . . . . . 1 . . . . . . . . Fabricators . | . . . . . . . . . . . . . . . . . Repair Stations . | . . . . . . . . . . . . . . . . . Recycling Units . | . . . . . . . . . . . . . . . . . Scanalyzers . | . . . . . . . . . . . . . . . . . Garrison Access . | . . . . . . . . . . . . . . . . . Data Cores Recovered 2 | . . . . . . . . . . . . 2 . . . . Used 1 | . . . . . . . . . . . . 1 . . . . Hacking Detections 22 | . 3 . 5 . . . . 6 1 . 1 6 . . . . Full Trace Events . | . . . . . . . . . . . . . . . . . Feedback Events . | . . . . . . . . . . . . . . . . . Feedback Blocked . | . . . . . . . . . . . . . . . . . Robot Schematics Acquired . | . . . . . . . . . . . . . . . . . Robots Built . | . . . . . . . . . . . . . . . . . Authchips . | . . . . . . . . . . . . . . . . . Time . | . . . . . . . . . . . . . . . . . Total Robot Build Rating . | . . . . . . . . . . . . . . . . . Part Schematics Acquired 6 | . . . 1 . . . . 1 . . . . . . 4 . Parts Built . | . . . . . . . . . . . . . . . . . Authchips . | . . . . . . . . . . . . . . . . . Time . | . . . . . . . . . . . . . . . . . Total Part Build Rating . | . . . . . . . . . . . . . . . . . Parts Repaired . | . . . . . . . . . . . . . . . . . Time . | . . . . . . . . . . . . . . . . . Parts Recycled . | . . . . . . . . . . . . . . . . . Recycled Matter 320 | . . . 129 . . . . . . . . 191 . . . . Retrieved Matter 320 | . . . 129 . . . . . . . . 191 . . . . Retrieved Components . | . . . . . . . . . . . . . . . . . Parts Scanalyzed 1 | . . . 1 . . . . . . . . . . . . . Part Schematics Acquired 1 | . . . 1 . . . . . . . . . . . . . Parts Damaged . | . . . . . . . . . . . . . . . . . Bothacking | -11 -10 -10 -9 -9 -9 -8 -8 -8 -7 -7 -6 -5 -5 -5 -5 -4 ------------ Run | Jun Mat Min Mat Min Exi Min Mat Sto Fac DSF Fac Fac Upp Upp Zhi Pro Used RIF Installer . | . . . . . . . . . . . . . . . . . Robots Hacked . | . . . . . . . . . . . . . . . . . Non-combat . | . . . . . . . . . . . . . . . . . Combat . | . . . . . . . . . . . . . . . . . Robot Hacks Applied . | . . . . . . . . . . . . . . . . . Relay Couplers Released . | . . . . . . . . . . . . . . . . . Fabnet Peak Effective % . | . . . . . . . . . . . . . . . . . Robots Rewired 1 | . . . . . . . . . . . . . . . . 1 Allies Hacked . | . . . . . . . . . . . . . . . . . Hacks Repelled . | . . . . . . . . . . . . . . . . . Allies | -11 -10 -10 -9 -9 -9 -8 -8 -8 -7 -7 -6 -5 -5 -5 -5 -4 -------- Run | Jun Mat Min Mat Min Exi Min Mat Sto Fac DSF Fac Fac Upp Upp Zhi Pro Total Allies 12 | . . . . . . . . 11 . . . . . . . 1 Largest Group 10 | . . . . . . . . 10 9 8 . . . . . 1 Highest-Rated Group 173 | . . . . . . . . 173 148 131 . . . . . 49 Highest-Rated Ally 49 | . . . . . . . . 29 29 29 . . . . . 49 Total Orders 1 | . . . . . . . . . . 1 . . . . . . ROAM 1 | . . . . . . . . . . 1 . . . . . . Ally Attacks 96 | . . . . . . . . 62 . 33 . . . . . 1 Total Damage 1276 | . . . . . . . . 872 . 382 . . . . . 22 Kills 14 | . . . . . . . . 10 . 4 . . . . . . Allies Corrupted . | . . . . . . . . . . . . . . . . . Allies Melted 1 | . . . . . . . . . . . . . . . . 1 Intel | -11 -10 -10 -9 -9 -9 -8 -8 -8 -7 -7 -6 -5 -5 -5 -5 -4 ------- Run | Jun Mat Min Mat Min Exi Min Mat Sto Fac DSF Fac Fac Upp Upp Zhi Pro Robot Analysis Total 4 | . . . . . . . . . . . . . . . 4 . Derelict Logs Recovered 5 | . . 2 . . . . . . . . . . 2 1 . . Drone Launches . | . . . . . . . . . . . . . . . . . Drone Recoveries . | . . . . . . . . . . . . . . . . . Exploration | -11 -10 -10 -9 -9 -9 -8 -8 -8 -7 -7 -6 -5 -5 -5 -5 -4 ------------- Run | Jun Mat Min Mat Min Exi Min Mat Sto Fac DSF Fac Fac Upp Upp Zhi Pro Turns Passed 12253 | . 1265 1079 1417 109 278 275 380 767 127 303 293 3908 760 629 405 258 Spaces Moved 7622 | 1 698 771 883 62 231 230 195 518 97 164 203 2390 478 341 239 121 Core 67 | . . . . . . . . . . . . 62 . . . 5 Treads 1351 | . 440 . . . . . . . . . . . 215 341 239 116 Legs 6204 | 1 258 771 883 62 231 230 195 518 97 164 203 2328 263 . . . Wheels . | . . . . . . . . . . . . . . . . . Hover . | . . . . . . . . . . . . . . . . . Flight . | . . . . . . . . . . . . . . . . . Fastest Speed 50 | 120 120 120 120 120 120 120 120 120 120 120 120 50 120 162 162 50 Average Speed 126 | 120 145 120 120 120 120 120 120 120 120 120 120 118 139 162 162 156 Slowest Speed 400 | 120 160 120 120 120 120 120 120 120 120 120 120 400 260 162 162 162 Overloaded Moves . | . . . . . . . . . . . . . . . . . Propulsion Burnouts . | . . . . . . . . . . . . . . . . . Robots Hopped . | . . . . . . . . . . . . . . . . . Cave-ins Triggered 1 | . . . . . . . . . . . . 1 . . . . Teleports 1 | . . . . . . . . . . . . . . . 1 . Exploration Rate (%) 52 | 2 85 98 77 23 61 75 22 70 4 91 7 45 86 58 62 20 Regions Visited 16 Branch Regions 9 Pre-discovered Areas 5 | . . 1 . . . . . . . . . . 1 . 3 . Known Exits Taken 2 | . . . . . . 1 . . 1 . . . . . . . Unknown Exits Taken 13 | 1 1 1 1 1 1 . 1 1 . . 1 1 1 1 1 . Scrap Searched 5 | . . 1 . . . . . . . . . . 2 1 . 1 Spaces Dug 12 | . 1 . 1 . . . . . . . . 9 . 1 . . Terrain Destroyed 267 | . 1 . 28 43 . . 26 . . 72 . 88 . 9 . . Melee 9 | . 1 . 1 . . . . . . . . 6 . 1 . . Projectile 56 | . . . . . . . . . . 1 . 55 . . . . AOE 201 | . . . 27 43 . . 26 . . 71 . 26 . 8 . . Terrain Rammed . | . . . . . . . . . . . . . . . . . Walls Destroyed . | . . . . . . . . . . . . . . . . . Machines Disabled . | . . . . . . . . . . . . . . . . . Actions | -11 -10 -10 -9 -9 -9 -8 -8 -8 -7 -7 -6 -5 -5 -5 -5 -4 --------- Run | Jun Mat Min Mat Min Exi Min Mat Sto Fac DSF Fac Fac Upp Upp Zhi Pro Total 9551 | . 864 875 1118 74 233 229 307 641 106 236 248 3272 532 409 256 151 Wait 1131 | . 70 37 88 . . . 76 60 6 36 30 660 10 57 . 1 Move 7606 | . 697 770 882 61 230 229 194 517 96 163 202 2389 477 340 238 121 Hop . | . . . . . . . . . . . . . . . . . Pick Up 61 | . 9 5 7 . 1 . 2 9 1 1 2 21 2 . 1 . Fast Attach 84 | . 9 5 9 . . . 2 3 1 3 . 30 9 3 9 1 Attach 29 | . . 2 3 . . . 3 1 1 2 2 13 . . . 2 Detach 6 | . . . . . . . . . . 2 . 4 . . . . Swap 99 | . 7 7 24 4 . . 9 15 1 3 4 20 1 3 . 1 Drop 151 | . 15 15 30 . 2 . 6 19 . 2 4 39 9 2 8 . Fire 363 | . 56 34 73 9 . . 15 12 . 24 4 87 24 3 . 22 Melee 15 | . 1 . 1 . . . . 4 . . . 8 . 1 . . Ram . | . . . . . . . . . . . . . . . . . Kick 2 | . . . 1 . . . . . . . . 1 . . . . Crush . | . . . . . . . . . . . . . . . . . Escape Stasis . | . . . . . . . . . . . . . . . . . Rewire 4 | . . . . . . . . 1 . . . . . . . 3 Trap . | . . . . . . . . . . . . . . . . . Miscellaneous . | . . . . . . . . . . . . . . . . . Route ------- -11/Junkyard -10/Materials (discovered 4 exits: *Mat x3 / *Min) -10/Mines (discovered 2 exits: *Mat x2) -9/Materials (discovered 4 exits: *Mat x3 / [*Min]) -9/Mines -9/Exiles -8/Mines (discovered 2 exits: *Mat x2) -8/Materials (discovered 2 exits: *Sto x2) -8/Storage -7/Factory -7/DSF -6/Factory -5/Factory -5/Upper Caves -5/Upper Caves -5/Zhirov -4/Proximity Caves History --------- Turn | Location | Event 1 | -11/Junkyard | Discovered new exit (range 0) 1 | -11/Junkyard | Entered Materials 301 | -10/Materials | Build established: Mutant 572 | -10/Materials | Discovered new exit (range 4) 849 | -10/Materials | Discovered new exit (range 11) 976 | -10/Materials | Discovered new exit (range 7) 1073 | -10/Materials | Discovered new exit (range 14) 1266 | -10/Materials | Entered Mines 1300 | -10/Mines | Build established: Scavenger-Mutant 1392 | -10/Mines | Discovered new exit (range 3) 1518 | -10/Mines | Core integrity fell below 50% 1609 | -10/Mines | Found the Drone Emporium 1614 | -10/Mines | Found Prototype Device 1614 | -10/Mines | Identified Thief Drone Bay 1658 | -10/Mines | Learned 8 Materials zone layouts 1985 | -10/Mines | Discovered new exit (range 9) 2297 | -10/Mines | Core integrity fell below 20% 2345 | -10/Mines | Entered Materials 2345 | -9/Materials | Evolved 2 slots: Propulsion x1, Weapon x1 2346 | -9/Materials | Identified exit to Materials 2653 | -9/Materials | Build established: Scavenger-Tank 2805 | -9/Materials | Discovered new exit (range 15) 3345 | -9/Materials | Discovered exit to Materials (range 4) 3762 | -9/Materials | Entered Mines 3823 | -9/Mines | Assembled infested the area 3866 | -9/Mines | Discovered new exit (range 5) 3871 | -9/Mines | Entered Exiles 3904 | -9/Exiles | Met 8R-AWN 3922 | -9/Exiles | Met EX-HEX 3957 | -9/Exiles | Met EX-BIN 3973 | -9/Exiles | Aligned with FarCom system 3975 | -9/Exiles | Given EX-Vault access code 4017 | -9/Exiles | Opened EX-Vault 4025 | -9/Exiles | Found Prototype Ballistic Gun 4049 | -9/Exiles | Warned to stay clear of 0b10 Research branches 4085 | -9/Exiles | Met EX-DEC 4135 | -9/Exiles | Discovered new exit (range 14) 4149 | -9/Exiles | Left Exiles lab with AWS/Gauss 4149 | -9/Exiles | Entered Mines 4211 | -8/Mines | Discovered exit to Materials (range 5) 4410 | -8/Mines | Discovered exit to Materials (range 11) 4424 | -8/Mines | Entered Materials 4424 | -8/Materials | Evolved 2 slots: Propulsion x1, Utility x1 4425 | -8/Materials | Discovered new exit (range 8) 4487 | -8/Materials | Build established: Scavenger-Skirmisher 4787 | -8/Materials | Discovered new exit (range 12) 4804 | -8/Materials | Entered Storage 5026 | -8/Storage | Assisted by bots powering up and referring to "LRC-V3" 5541 | -8/Storage | Discovered new exit (range 16) 5571 | -8/Storage | Entered Factory 5571 | -7/Factory | Accompanied by 9 allies 5571 | -7/Factory | Evolved 2 slots: Utility x1, Weapon x1 5689 | -7/Factory | Identified exit to DSF 5698 | -7/Factory | Entered DSF 5698 | -7/DSF | Accompanied by 9 allies 5720 | -7/DSF | Additional patrols routed to DSF 5896 | -7/DSF | Sterilization system engaged 5916 | -7/DSF | Ambient heat levels rising (+10) 5931 | -7/DSF | Ambient heat levels rising (+10) 5946 | -7/DSF | Ambient heat levels rising (+10) 5961 | -7/DSF | Ambient heat levels rising (+10) 5976 | -7/DSF | Ambient heat levels rising (+10) 5979 | -7/DSF | Discovered new exit (range 15) 5991 | -7/DSF | Ambient heat levels rising (+10) 6001 | -7/DSF | Entered Factory 6001 | -6/Factory | Evolved 2 slots: Propulsion x1, Utility x1 6231 | -6/Factory | Discovered new exit (range 10) 6294 | -6/Factory | Entered another Factory area 6294 | -5/Factory | Evolved 2 slots: Utility x2 6633 | -5/Factory | Build established: Scavenger-Gunner 7988 | -5/Factory | Released all parts (11) 8016 | -5/Factory | Lost 4 parts (1p3n) 8020 | -5/Factory | Identified AWS/Gauss 8040 | -5/Factory | Core integrity fell below 50% 8647 | -5/Factory | Build established: Scavenger-Tank 8847 | -5/Factory | Crushed by falling debris 9266 | -5/Factory | System corruption reached 10% 9689 | -5/Factory | Found Prototype Launcher 9689 | -5/Factory | Identified Tesla Bomb Launcher 9809 | -5/Factory | Build established: Scavenger-Skirmisher 9978 | -5/Factory | Core integrity fell below 20% 10169 | -5/Factory | Discovered new exit (range 5) 10202 | -5/Factory | Entered Upper Caves 10219 | -5/Upper Caves | Met a Warlord Commander 10220 | -5/Upper Caves | Learned location of Warlord (-4) 10223 | -5/Upper Caves | Found Encrypted Comm Array 10491 | -5/Upper Caves | Build established: Scavenger-Tank 10542 | -5/Upper Caves | Attacked by a faux Warlord 10926 | -5/Upper Caves | Discovered new exit (range 6) 10927 | -5/Upper Caves | Learned Factory stockpile data 10962 | -5/Upper Caves | Entered another Upper Caves area 10974 | -5/Upper Caves | Learned Factory terminal intel 11575 | -5/Upper Caves | Discovered new exit (range 10) 11591 | -5/Upper Caves | Entered Zhirov 11591 | -5/Zhirov | Discovered new exit (range 3) 11788 | -5/Zhirov | Found Alien Artifact 11788 | -5/Zhirov | Identified Integrated Reactor 11788 | -5/Zhirov | Installed Integrated Reactor, increased core energy generation (+10) 11813 | -5/Zhirov | Found Alien Artifact 11813 | -5/Zhirov | Identified Transdimensional Reconstructor 11813 | -5/Zhirov | Warped through subspace 11913 | -5/Zhirov | Learned location of Quarantine (-2) 11913 | -5/Zhirov | Learned location of Testing (-3) 11913 | -5/Zhirov | Learned location of Command (-1) 11996 | -5/Zhirov | Entered Proximity Caves 12016 | -4/Proximity Caves | Spotted B-86 Titan 12050 | -4/Proximity Caves | Attracted the attention of an 0b10 outpost 12181 | -4/Proximity Caves | Lost 3 parts (1n1u1w) 12205 | -4/Proximity Caves | Spotter reported a threat 12252 | -4/Proximity Caves | Released all parts (9) 12254 | -4/Proximity Caves | Destroyed by H-77 Assassin with High-powered Shotgun Last Messages --------------- 12244_ Lgt. Treads destroyed. 12244_ Imp. Medium Treads destroyed. 12246_ >UE4QDAY8D3VN4UR3N9H 12248_ Slug penetrates Wall. 12250_ Imp. Heavy Machine Gun destroyed. 12251_ Penetrated by Slug. 12251_ Slug penetrates Wall. 12251_ Imp. Heavy Machine Gun destroyed. 12252_ Released Adv. Heat Sink. 12252_ Released Lyr. Medium Armor Plating. 12252_ Released Imp. Hacking Suite. 12252_ Released Imp. Target Analyzer. 12252_ Released Encrypted Comm Array. 12252_ Released Hvy. Antimatter Reactor. 12252_ Released Exp. Power Shielding. 12252_ Released Lyr. Medium Armor Plating. 12252_ Released Great Axe. 12254_ Slug penetrates G-67 Veteran. 12254_ Slug penetrates Wall. 12254_ Penetrated by Slug. Map ----- +----------------------------------------------------+ | | | | | | | | | | | | | | | ?????????????????????????????????????????????????? | | ?????????????????????????????????????????????????? | | ?????????????????????????????????????????????????? | | ?????????????????????????????????????????????????? | | ?????????????????????????????????????????????????? | | ?????????????????????????????????????????????????? | | ?????????????????????????????????????????????????? | | ?????????????????????????????????????????????????? | | ???????????????????????????###???????????????????? | | ??????????????????????????#b #???????????????????? | | ####?????????????????????? ???????????????????? | | #??????????????????????g ????????????????????? | | " #?????????????????????? ?#??????????????????? | | " #?????????????????????? ?b#??????????????????? | | ###???????????????##### #??????????????????? | | " ##?????????????## # g???????????????????? | | ######????????# ????????????????????? | | #?# #?????????# #????##???????????????? | | #?## #??????????# @#???? #???????????????? | | ### #???###????# #??? #???????????????? | | # ## #???## #???## #?? #????????????????? | | ## ## ##### #??## ##? #?????????????????? | | ## ## ## #??#/* ## #??????????????????? | | ## ####!!! #???????????????????? | | ###### ###!g #???????????????????? | | #????### ##?# hh ##???????????????????? | | ??????## ##### #####????????????????????? | | ??????## #????????????????????????? | | ???????## #????????????????????????? | | ???????### ##########????????????????????????? | | ????????# #?????????????????????????????????? | | ????????# #?????????????????????????????????? | | ???????# ?????????????????????????????????? | | #???????# ????????????????????????????????? | | #####???????##### ???????????????????????????????? | | ????????????????? ???????????????????????????????? | | ?????????????????????????????????????????????????? | | ?????????????????????????????????????????????????? | | ?????????????????????????????????????????????????? | | ?????????????????????????????????????????????????? | | ?????????????????????????????????????????????????? | | ?????????????????????????????????????????????????? | | ?????????????????????????????????????????????????? | +----------------------------------------------------+ Best States ------------- Heat Dissipation 68 Energy Generation 35 Energy Capacity 340 Matter Stores 300 Matter Capacity 300 Sight Range 16 Robot Scan Range 15 Terrain Scan Density 10 Jamming Range 14 Armor Coverage 600 Power Shielding 90 Propulsion Shielding 66 Utility Shielding 90 Weapon Shielding 66 Weapon Cycling 20 Evasion (%) 55 Targeting Accuracy 10 Target Analysis 6 Recoil Reduction 5 Kinecelleration 40 Offensive Hacking 12 Item Schematics ----------------- Aluminum Leg | -9/Materials | Scanalyzed Hvy. Flail | -8/Storage | Hacked Assault Drone Bay | -5/Zhirov | Free Exp. Heat Sink | -5/Zhirov | Free Exp. Optical Array | -5/Zhirov | Free Imp. Arc Thrower | -5/Zhirov | Free Robot Schematics ------------------ None Fabricated ------------ Nothing Alien Tech Used ----------------- Integrated Reactor Transdimensional Reconstructor Achievements -------------- None Challenges ------------ None Game ------ Seed MinesnifferSpreadPropulsion Manual? 0 Play Time 01:48:16 Cumulative 136.5 hours Start 2024.02.09 @ 23:51:05 End 2024.02.12 @ 17:51:38 Sessions 7 Manual Loads 0 Difficulty Rogue Special Mode None Game No. 212 Rogue 212 Adventurer 0 Explorer 0 Win Type - Total 1 Types 1/0/0/0/0/0/0/0/0 Lore% 57 Gallery% 62 Achievement% 47 Wizard Run 0 Options --------- ASCII 0 Keyboard 1 Movement Numpad Keybinds 0 Fullscreen 1 Font 18/SmallcapsGlow Map View 76x50 Tactical HUD 1 Map Filters NONE Filters NONE Steam 1 RUN: 8dd51c58-8c66-480a-b3f3-1fefadfcbfef